[Event "Romanian Superliga Women 2024"]
[Site "Mamaia"]
[Date "2024.10.01"]
[Round "2.1"]
[White "Atalik, Ekaterina"]
[Black "Semenova, Vasylyna"]
[Result "1-0"]
[ECO "D35"]
[WhiteElo "2381"]
[BlackElo "1887"]
[Annotator "RC"]
[PlyCount "59"]
[EventDate "2024.09.26"]
[EventType "team-tourn"]
[EventCountry "ROU"]
[SourceTitle "playchess.com"]
[Source "ChessBase"]
[SourceQuality "1"]
[TimeControl "40/5400+30:1800+30"]

1. d4 {[%emt 0:00:04]} d5 {[%emt 0:00:04]} 2. c4 {[%emt 0:00:13]} e6 {[%emt 0:00:08]} 3. Nc3 {[%emt 0:00:21]} Nf6 {[%emt 0:00:09]} 4. cxd5 {[%emt 0:00:17]} exd5 {[%emt 0:00:06]} 5. Bg5 {[%emt 0:00:16]} Be7 {[%emt 0:00:13]} 6. e3 {[%emt 0:00:07]} c6 {[%emt 0:00:12]} 7. Bd3 {[%emt 0:00:10]} O-O {[%emt 0:00:07]} 8. h3 {[%emt 0:00:11]} Re8 {[%emt 0:00:28]} 9. Bf4 {[%emt 0:00:21]} Bd6 {[%emt 0:02:31]} 10. Qf3 {[%emt 0:01:59]} Bxf4 {[%emt 0:06:10]} 11. Qxf4 {[%emt 0:00:05]} b6 {[%emt 0:01:43]} 12. Nf3 {[%emt 0:03:06]} Bb7 {[%emt 0:01:04]} 13. O-O-O {[%emt 0:01:08]} c5 {[%emt 0:05:43]} 14. g4 {[%emt 0:04:26]} c4 {[%emt 0:00:40]} 15. Bc2 {[%emt 0:01:15]} a6 {[%emt 0:03:22]} 16. Ne5 {[%emt 0:02:10]} Qe7 {[%emt 0:07:50]} 17. g5 {[%emt 0:02:08]} Nfd7 {[%emt 0:04:45]} 18. Ng4 {[%emt 1:21:13]} Nf8 {[%emt 1:04:15]} 19. Nf6+ {[%emt 0:00:00]} Kh8 {[%emt 0:00:00]} 20. Nxe8 {[%emt 0:00:00]} Qxe8 {[%emt 0:00:00]} 21. e4 {[%emt 0:00:00]} dxe4 {[%emt 0:00:00]} 22. d5 {[%emt 0:00:00]} Nbd7 {[%emt 0:00:00]} 23. Nxe4 {[%emt 0:00:00]} Ng6 {[%emt 0:00:00]} 24. Qc7 {[%emt 0:00:00]} Qc8 {[%emt 0:00:00]} 25. Qxc8+ {[%emt 0:00:00]} Rxc8 {[%emt 0:00:00]} 26. Nd6 {[%emt 0:00:00]} Rc7 {[%emt 0:00:00]} 27. Rhe1 {[%emt 0:00:00]} Kg8 {[%emt 0:00:00]} 28. Bxg6 {[%emt 0:00:00]} fxg6 {[%emt 0:00:00]} 29. Re8+ {[%emt 0:00:00]} Nf8 {[%emt 0:00:00]} 30. Rb8 {[%emt 0:00:00]} 1-0

[Event "Romanian Superliga Women 2024"]
[Site "Mamaia"]
[Date "2024.10.01"]
[Round "2.2"]
[White "Sunea, Sara Maria"]
[Black "Cosma, Elena-Luminita"]
[Result "0-1"]
[ECO "D05"]
[WhiteElo "1871"]
[BlackElo "2226"]
[Annotator "RC"]
[PlyCount "86"]
[EventDate "2024.09.26"]
[EventType "team-tourn"]
[EventCountry "ROU"]
[SourceTitle "playchess.com"]
[Source "ChessBase"]
[SourceQuality "1"]
[TimeControl "40/5400+30:1800+30"]

1. d4 {[%emt 0:00:04]} d5 {[%emt 0:00:06]} 2. Nf3 {[%emt 0:00:08]} Nf6 {[%emt 0:00:16]} 3. e3 {[%emt 0:00:07]} e6 {[%emt 0:02:25]} 4. Bd3 {[%emt 0:00:13]} c5 {[%emt 0:00:12]} 5. O-O {[%emt 0:01:43]} Nc6 {[%emt 0:01:29]} 6. b3 {[%emt 0:00:32]} Bd6 {[%emt 0:00:53]} 7. Bb2 {[%emt 0:00:46]} O-O {[%emt 0:02:18]} 8. Nbd2 {[%emt 0:00:28]} cxd4 {[%emt 0:01:25]} 9. exd4 {[%emt 0:00:24]} b6 {[%emt 0:01:45]} 10. a3 {[%emt 0:02:00]} Bb7 {[%emt 0:00:40]} 11. c4 {[%emt 0:00:48]} Rc8 {[%emt 0:00:29]} 12. Qe2 {[%emt 0:00:25]} Ne7 {[%emt 0:04:20]} 13. Rac1 {[%emt 0:04:36]} Ng6 {[%emt 0:03:12]} 14. g3 {[%emt 0:00:45]} Qe7 {[%emt 0:03:06]} 15. a4 {[%emt 0:14:03]} Rfd8 {[%emt 0:03:34]} 16. Rfd1 {[%emt 0:01:47]} Ba8 {[%emt 0:13:40]} 17. Bc3 {[%emt 0:17:54]} Bb4 {[%emt 0:08:29]} 18. Bxb4 {[%emt 0:10:58]} Qxb4 {[%emt 0:00:06]} 19. Ra1 {[%emt 0:02:38]} a5 {[%emt 0:08:23]} 20. h4 {[%emt 0:05:45]} Qe7 {[%emt 0:06:14]} 21. Rac1 {[%emt 0:05:05]} Qb4 {[%emt 0:09:11]} 22. Ra1 {[%emt 0:04:11]} Bb7 {[%emt 0:10:32]} 23. Rdc1 {[%emt 0:02:12]} Ne7 {[%emt 0:02:13]} 24. Qe3 {[%emt 0:04:28]} h6 {[%emt 0:04:49]} 25. Ne5 {[%emt 0:07:09]} Nc6 {[%emt 0:04:28]} 26. Ndf3 {[%emt 0:02:05]} Nxe5 {[%emt 0:02:10]} 27. Nxe5 {[%emt 0:00:39]} dxc4 {[%emt 0:01:37]} 28. bxc4 {[%emt 0:00:29]} Qd6 {[%emt 0:00:20]} 29. Rd1 {[%emt 0:00:33]} Nd7 {[%emt 0:00:18]} 30. f3 {[%emt 0:09:34]} Nxe5 {[%emt 0:03:29]} 31. dxe5 {[%emt 0:00:11]} Qc5 {[%emt 0:00:54]} 32. Kf2 {[%emt 0:00:37]} Bc6 {[%emt 0:00:11]} 33. Qxc5 {[%emt 0:01:09]} bxc5 {[%emt 0:00:04]} 34. Bc2 {[%emt 0:01:55]} Kf8 {[%emt 0:01:10]} 35. Ke3 {[%emt 0:00:17]} Ke7 {[%emt 0:00:47]} 36. Rxd8 {[%emt 0:01:06]} Kxd8 {[%emt 0:00:46]} 37. Rb1 {[%emt 0:00:20]} Kc7 {[%emt 0:00:28]} 38. Be4 {[%emt 0:00:27]} Rd8 {[%emt 0:02:06]} 39. Bd3 {[%emt 0:00:51]} Bxf3 {[%emt 0:00:42]} 40. Rb5 {[%emt 0:00:00]} Bc6 {[%emt 0:00:00]} 41. Rb1 {[%emt 0:03:21]} f5 {[%emt 0:01:05]} 42. Rb2 {[%emt 0:01:29]} Rd4 {[%emt 0:00:12]} 43. Rb1 {[%emt 0:04:28]} Rxd3+ {[%emt 0:31:26]} 0-1

[Event "Romanian Superliga Women 2024"]
[Site "Mamaia"]
[Date "2024.10.01"]
[Round "2.3"]
[White "Ciolacu, Alessia-Mihaela"]
[Black "Bitca, Emilia"]
[Result "1-0"]
[ECO "D10"]
[WhiteElo "2160"]
[BlackElo "1865"]
[Annotator "RC"]
[PlyCount "89"]
[EventDate "2024.09.26"]
[EventType "team-tourn"]
[EventCountry "ROU"]
[SourceTitle "playchess.com"]
[Source "ChessBase"]
[SourceQuality "1"]
[TimeControl "40/5400+30:1800+30"]

1. d4 {[%emt 0:00:04]} d5 {[%emt 0:00:13]} 2. c4 {[%emt 0:00:09]} c6 {[%emt 0:00:10]} 3. Nc3 {[%emt 0:00:10]} Nf6 {[%emt 0:00:17]} 4. e3 {[%emt 0:00:10]} Bf5 {[%emt 0:00:48]} 5. cxd5 {[%emt 0:00:42]} cxd5 {[%emt 0:00:20]} 6. Qb3 {[%emt 0:00:06]} Qd7 {[%emt 0:03:36]} 7. Nf3 {[%emt 0:01:32]} e6 {[%emt 0:04:43]} 8. Bb5 {[%emt 0:01:39]} Nc6 {[%emt 0:00:13]} 9. Ne5 {[%emt 0:00:41]} Qc7 {[%emt 0:01:13]} 10. Qa4 {[%emt 0:00:49]} Rc8 {[%emt 0:02:16]} 11. Qxa7 {[%emt 0:02:33]} Bd6 {[%emt 0:06:06]} 12. Nxc6 {[%emt 0:10:44]} bxc6 {[%emt 0:00:07]} 13. Qxc7 {[%emt 0:00:09]} Rxc7 {[%emt 0:00:15]} 14. Be2 {[%emt 0:00:45]} O-O {[%emt 0:00:35]} 15. O-O {[%emt 0:05:41]} Rb8 {[%emt 0:03:23]} 16. a3 {[%emt 0:11:28]} Ra7 {[%emt 0:04:19]} 17. f3 {[%emt 0:12:34]} h5 {[%emt 0:04:06]} 18. Ra2 {[%emt 0:04:14]} Rba8 {[%emt 0:05:06]} 19. Bd2 {[%emt 0:02:19]} Be7 {[%emt 0:02:34]} 20. Rc1 {[%emt 0:01:54]} Nd7 {[%emt 0:04:42]} 21. e4 {[%emt 0:11:08]} Bg6 {[%emt 0:03:22]} 22. Be3 {[%emt 0:00:51]} Ra5 {[%emt 0:03:07]} 23. exd5 {[%emt 0:06:49]} cxd5 {[%emt 0:04:32]} 24. Nb5 {[%emt 0:03:07]} Rd8 {[%emt 0:09:45]} 25. Rc7 {[%emt 0:03:44]} Bf8 {[%emt 0:00:54]} 26. Ra1 {[%emt 0:01:16]} Nb6 {[%emt 0:03:07]} 27. b3 {[%emt 0:00:53]} Rc8 {[%emt 0:04:44]} 28. Rxc8 {[%emt 0:00:52]} Nxc8 {[%emt 0:00:05]} 29. Rc1 {[%emt 0:00:17]} Nd6 {[%emt 0:00:47]} 30. a4 {[%emt 0:01:24]} Nf5 {[%emt 0:06:46]} 31. Bd2 {[%emt 0:03:59]} Ra8 {[%emt 0:02:43]} 32. a5 {[%emt 0:00:26]} Be7 {[%emt 0:02:09]} 33. g4 {[%emt 0:02:34]} hxg4 {[%emt 0:00:40]} 34. fxg4 {[%emt 0:00:06]} Nh4 {[%emt 0:00:52]} 35. Rc6 {[%emt 0:02:16]} Be4 {[%emt 0:02:28]} 36. Kf2 {[%emt 0:04:25]} Ng6 {[%emt 0:02:50]} 37. g5 {[%emt 0:01:01]} e5 {[%emt 0:01:07]} 38. b4 {[%emt 0:03:13]} Nf4 {[%emt 0:06:34]} 39. Bxf4 {[%emt 0:01:49]} exf4 {[%emt 0:00:29]} 40. Nc7 {[%emt 0:00:00]} Rc8 {[%emt 0:00:00]} 41. Nxd5 {[%emt 0:03:01]} Rxc6 {[%emt 0:07:58]} 42. Nxe7+ {[%emt 0:00:05]} Kf8 {[%emt 0:00:05]} 43. Nxc6 {[%emt 0:00:05]} Bxc6 {[%emt 0:00:02]} 44. b5 {[%emt 0:00:12]} Bd5 {[%emt 0:00:30]} 45. Bf3 {[%emt 0:00:18]} 1-0

[Event "Romanian Superliga Women 2024"]
[Site "Mamaia"]
[Date "2024.10.01"]
[Round "2.4"]
[White "Moldovan, Maia-Rut"]
[Black "Foisor, Sabina-Francesca"]
[Result "0-1"]
[ECO "B15"]
[WhiteElo "1778"]
[BlackElo "2199"]
[Annotator "RC"]
[PlyCount "82"]
[EventDate "2024.09.26"]
[EventType "team-tourn"]
[EventCountry "ROU"]
[SourceTitle "playchess.com"]
[Source "ChessBase"]
[SourceQuality "1"]
[TimeControl "40/5400+30:1800+30"]

1. e4 {[%emt 0:00:03]} c6 {[%emt 0:00:47]} 2. d4 {[%emt 0:00:10]} g6 {[%emt 0:01:06]} 3. Nc3 {[%emt 0:00:42]} d5 {[%emt 0:00:18]} 4. e5 {[%emt 0:00:15]} Bg7 {[%emt 0:00:31]} 5. h3 {[%emt 0:03:08]} h5 {[%emt 0:03:37]} 6. Be2 {[%emt 0:08:17]} b6 {[%emt 0:16:40]} 7. f4 {[%emt 0:06:13]} e6 {[%emt 0:03:01]} 8. Nf3 {[%emt 0:08:49]} Ne7 {[%emt 0:00:20]} 9. Nh4 {[%emt 0:05:22]} Ba6 {[%emt 0:06:58]} 10. Be3 {[%emt 0:01:20]} Bxe2 {[%emt 0:03:18]} 11. Qxe2 {[%emt 0:00:12]} Nd7 {[%emt 0:00:13]} 12. Bf2 {[%emt 0:00:58]} Bh6 {[%emt 0:09:01]} 13. Qf3 {[%emt 0:04:30]} b5 {[%emt 0:17:02]} 14. g4 {[%emt 0:08:41]} b4 {[%emt 0:06:19]} 15. Ne2 {[%emt 0:00:38]} Qa5 {[%emt 0:03:22]} 16. O-O {[%emt 0:05:12]} hxg4 {[%emt 0:02:57]} 17. hxg4 {[%emt 0:00:57]} c5 {[%emt 0:00:45]} 18. c3 {[%emt 0:03:43]} bxc3 {[%emt 0:01:16]} 19. bxc3 {[%emt 0:02:09]} Rb8 {[%emt 0:00:18]} 20. f5 {[%emt 0:06:58]} Bg5 {[%emt 0:09:35]} 21. fxe6 {[%emt 0:11:25]} fxe6 {[%emt 0:00:04]} 22. Ng2 {[%emt 0:00:42]} Rf8 {[%emt 0:02:53]} 23. Qg3 {[%emt 0:06:35]} cxd4 {[%emt 0:04:16]} 24. cxd4 {[%emt 0:00:41]} Qd2 {[%emt 0:00:09]} 25. Nc1 {[%emt 0:08:08]} Rb2 {[%emt 0:01:36]} 26. Nb3 {[%emt 0:00:28]} Qe2 {[%emt 0:00:44]} 27. Be3 {[%emt 0:01:45]} Qxg2+ {[%emt 0:01:49]} 28. Qxg2 {[%emt 0:00:17]} Bxe3+ {[%emt 0:00:04]} 29. Kh2 {[%emt 0:01:42]} Bf4+ {[%emt 0:00:14]} 30. Kg1 {[%emt 0:00:37]} Be3+ {[%emt 0:00:20]} 31. Kh2 {[%emt 0:00:12]} Rxg2+ {[%emt 0:00:24]} 32. Kxg2 {[%emt 0:00:06]} Rxf1 {[%emt 0:00:15]} 33. Rxf1 {[%emt 0:00:36]} Nc6 {[%emt 0:00:04]} 34. Rd1 {[%emt 0:02:42]} Nb6 {[%emt 0:00:05]} 35. Rd3 {[%emt 0:01:05]} Nc4 {[%emt 0:00:31]} 36. Kf3 {[%emt 0:00:28]} Bxd4 {[%emt 0:02:16]} 37. Rxd4 {[%emt 0:01:47]} N4xe5+ {[%emt 0:00:16]} 38. Kf4 {[%emt 0:01:01]} g5+ {[%emt 0:00:07]} 39. Ke3 {[%emt 0:00:53]} Nxd4 {[%emt 0:00:06]} 40. Kxd4 {[%emt 0:00:00]} Nxg4 {[%emt 0:00:00]} 41. Nc5 {[%emt 0:00:15]} Ke7 {[%emt 0:00:18]} 0-1

[Event "Romanian Superliga Women 2024"]
[Site "Mamaia"]
[Date "2024.10.01"]
[Round "2.5"]
[White "Tarleva, Diana"]
[Black "Raeva, Elitsa"]
[Result "0-1"]
[ECO "E64"]
[WhiteElo "2135"]
[BlackElo "2185"]
[Annotator "RC"]
[PlyCount "56"]
[EventDate "2024.09.26"]
[EventType "team-tourn"]
[EventCountry "ROU"]
[SourceTitle "playchess.com"]
[Source "ChessBase"]
[SourceQuality "1"]
[TimeControl "40/5400+30:1800+30"]

1. d4 {[%emt 0:16:26]} Nf6 {[%emt 0:00:16]} 2. Nf3 {[%emt 0:03:09]} g6 {[%emt 0:00:23]} 3. c4 {[%emt 0:02:55]} c5 {[%emt 0:00:41]} 4. d5 {[%emt 0:00:13]} Bg7 {[%emt 0:00:08]} 5. Nc3 {[%emt 0:00:13]} O-O {[%emt 0:00:34]} 6. g3 {[%emt 0:03:03]} d6 {[%emt 0:00:57]} 7. Bg2 {[%emt 0:00:01]} e5 {[%emt 0:04:04]} 8. O-O {[%emt 0:26:44]} a6 {[%emt 0:03:20]} 9. a4 {[%emt 0:02:31]} Nbd7 {[%emt 0:01:04]} 10. a5 {[%emt 0:00:23]} Rb8 {[%emt 0:01:08]} 11. Qa4 {[%emt 0:13:05]} h6 {[%emt 0:04:11]} 12. Nd2 {[%emt 0:02:34]} Ne8 {[%emt 0:02:32]} 13. b4 {[%emt 0:01:14]} e4 {[%emt 0:08:03]} 14. Bb2 {[%emt 0:03:47]} b5 {[%emt 0:07:17]} 15. cxb5 {[%emt 0:02:16]} axb5 {[%emt 0:00:20]} 16. Qb3 {[%emt 0:05:26]} c4 {[%emt 0:07:16]} 17. Qc2 {[%emt 0:08:56]} f5 {[%emt 0:00:23]} 18. Nd1 {[%emt 0:02:27]} Ndf6 {[%emt 0:03:14]} 19. f3 {[%emt 0:00:45]} e3 {[%emt 0:08:42]} 20. Nxe3 {[%emt 0:00:20]} Qe7 {[%emt 0:00:13]} 21. Kf2 {[%emt 0:01:16]} Nc7 {[%emt 0:00:39]} 22. Ndxc4 {[%emt 0:01:47]} bxc4 {[%emt 0:00:37]} 23. Qxc4 {[%emt 0:00:10]} Re8 {[%emt 0:04:18]} 24. Ra3 {[%emt 0:01:30]} Ba6 {[%emt 0:42:10]} 25. Qb3 {[%emt 0:00:38]} Kh7 {[%emt 0:00:00]} 26. Re1 {[%emt 0:00:37]} Nb5 {[%emt 0:00:00]} 27. Ra2 {[%emt 0:00:08]} Qa7 {[%emt 0:00:00]} 28. f4 {[%emt 0:01:12]} Rxe3 {[%emt 0:00:00]} 0-1

[Event "Romanian Superliga Women 2024"]
[Site "Mamaia"]
[Date "2024.10.01"]
[Round "2.6"]
[White "Pirvulescu, Ekaterina"]
[Black "Stanciu, Andreea-Briana"]
[Result "1-0"]
[ECO "B13"]
[WhiteElo "2083"]
[BlackElo "1957"]
[Annotator "RC"]
[PlyCount "197"]
[EventDate "2024.09.26"]
[EventType "team-tourn"]
[EventCountry "ROU"]
[SourceTitle "playchess.com"]
[Source "ChessBase"]
[SourceQuality "1"]
[TimeControl "40/5400+30:1800+30"]

1. e4 {[%emt 0:00:02]} c6 {[%emt 0:07:34]} 2. d4 {[%emt 0:00:10]} d5 {[%emt 0:00:06]} 3. exd5 {[%emt 0:00:02]} cxd5 {[%emt 0:00:06]} 4. Bd3 {[%emt 0:00:02]} Nc6 {[%emt 0:00:08]} 5. c3 {[%emt 0:00:12]} Qc7 {[%emt 0:00:05]} 6. h3 {[%emt 0:00:24]} Nf6 {[%emt 0:00:14]} 7. Nf3 {[%emt 0:00:06]} g6 {[%emt 0:00:24]} 8. Qc2 {[%emt 0:00:58]} Bg7 {[%emt 0:00:59]} 9. O-O {[%emt 0:00:33]} O-O {[%emt 0:00:28]} 10. Re1 {[%emt 0:02:39]} Nd7 {[%emt 0:00:29]} 11. Be3 {[%emt 0:04:39]} e5 {[%emt 0:05:07]} 12. dxe5 {[%emt 0:01:28]} Ndxe5 {[%emt 0:00:25]} 13. Nxe5 {[%emt 0:12:52]} Nxe5 {[%emt 0:00:14]} 14. Bd4 {[%emt 0:08:55]} Be6 {[%emt 0:09:47]} 15. Na3 {[%emt 0:16:24]} a6 {[%emt 0:05:11]} 16. Qe2 {[%emt 0:02:30]} Nxd3 {[%emt 0:11:14]} 17. Qxd3 {[%emt 0:00:55]} Qf4 {[%emt 0:15:31]} 18. Bxg7 {[%emt 0:02:04]} Kxg7 {[%emt 0:00:05]} 19. Nc2 {[%emt 0:07:14]} Qf6 {[%emt 0:05:13]} 20. Nd4 {[%emt 0:02:15]} Bd7 {[%emt 0:15:13]} 21. Rad1 {[%emt 0:09:16]} Rfe8 {[%emt 0:02:37]} 22. Nb3 {[%emt 0:05:30]} Bc6 {[%emt 0:02:38]} 23. Qd4 {[%emt 0:05:27]} Qxd4 {[%emt 0:03:13]} 24. Nxd4 {[%emt 0:00:12]} Rxe1+ {[%emt 0:02:03]} 25. Rxe1 {[%emt 0:00:03]} Re8 {[%emt 0:00:12]} 26. Rd1 {[%emt 0:01:48]} Ba4 {[%emt 0:00:26]} 27. Rd2 {[%emt 0:02:59]} Re1+ {[%emt 0:02:17]} 28. Kh2 {[%emt 0:00:03]} Kf6 {[%emt 0:01:20]} 29. Kg3 {[%emt 0:05:18]} Ra1 {[%emt 0:02:51]} 30. a3 {[%emt 0:01:00]} Re1 {[%emt 0:02:27]} 31. f3 {[%emt 0:01:20]} Re7 {[%emt 0:01:37]} 32. Kf2 {[%emt 0:00:34]} g5 {[%emt 0:00:37]} 33. g4 {[%emt 0:00:59]} Bd7 {[%emt 0:00:26]} 34. Nc2 {[%emt 0:01:35]} Be6 {[%emt 0:01:55]} 35. Ne3 {[%emt 0:00:31]} Rd7 {[%emt 0:00:16]} 36. Rd4 {[%emt 0:00:34]} Ke5 {[%emt 0:00:48]} 37. Nc2 {[%emt 0:03:08]} f5 {[%emt 0:00:37]} 38. Nb4 {[%emt 0:01:32]} fxg4 {[%emt 0:03:12]} 39. hxg4 {[%emt 0:01:02]} Rc7 {[%emt 0:00:58]} 40. Rd1 {[%emt 0:00:00]} Rf7 {[%emt 0:00:00]} 41. Kg3 {[%emt 0:03:02]} Rd7 {[%emt 0:15:29]} 42. Nc2 {[%emt 0:02:27]} Bf7 {[%emt 0:01:41]} 43. Nd4 {[%emt 0:01:06]} Kf6 {[%emt 0:06:21]} 44. Ne2 {[%emt 0:08:02]} Re7 {[%emt 0:00:52]} 45. Kf2 {[%emt 0:00:33]} Re5 {[%emt 0:01:18]} 46. Ng3 {[%emt 0:03:05]} Bg6 {[%emt 0:00:05]} 47. Rd4 {[%emt 0:00:36]} b6 {[%emt 0:03:27]} 48. Rb4 {[%emt 0:02:44]} Re6 {[%emt 0:00:13]} 49. Rd4 {[%emt 0:00:48]} Re5 {[%emt 0:00:26]} 50. a4 {[%emt 0:01:24]} a5 {[%emt 0:00:52]} 51. b4 {[%emt 0:05:03]} Bc2 {[%emt 0:01:12]} 52. bxa5 {[%emt 0:03:03]} bxa5 {[%emt 0:00:04]} 53. Rd2 {[%emt 0:03:23]} Bxa4 {[%emt 0:01:05]} 54. Ra2 {[%emt 0:00:03]} Be8 {[%emt 0:01:22]} 55. Rxa5 {[%emt 0:00:18]} Bg6 {[%emt 0:00:11]} 56. Rc5 {[%emt 0:01:27]} Re6 {[%emt 0:01:35]} 57. Rxd5 {[%emt 0:01:00]} Rc6 {[%emt 0:00:22]} 58. Ne2 {[%emt 0:00:31]} h5 {[%emt 0:02:11]} 59. gxh5 {[%emt 0:00:58]} Bxh5 {[%emt 0:00:04]} 60. Rd3 {[%emt 0:01:05]} Bg6 {[%emt 0:00:18]} 61. Re3 {[%emt 0:00:21]} Rc4 {[%emt 0:01:44]} 62. Nd4 {[%emt 0:00:33]} Bf7 {[%emt 0:00:13]} 63. Kg3 {[%emt 0:00:38]} Ra4 {[%emt 0:00:27]} 64. Nc2 {[%emt 0:01:48]} Ra2 {[%emt 0:01:11]} 65. Nd4 {[%emt 0:00:18]} Ra1 {[%emt 0:00:15]} 66. Re2 {[%emt 0:00:53]} Bc4 {[%emt 0:00:49]} 67. Re3 {[%emt 0:00:48]} Rg1+ {[%emt 0:00:19]} 68. Kf2 {[%emt 0:00:26]} Rf1+ {[%emt 0:00:22]} 69. Kg2 {[%emt 0:00:15]} Rc1 {[%emt 0:00:16]} 70. Nc6 {[%emt 0:00:40]} g4 {[%emt 0:00:42]} 71. Ne5 {[%emt 0:00:46]} gxf3+ {[%emt 0:00:09]} 72. Nxf3 {[%emt 0:00:26]} Bd5 {[%emt 0:00:06]} 73. Kf2 {[%emt 0:00:30]} Rc2+ {[%emt 0:00:31]} 74. Kg3 {[%emt 0:00:34]} Bxf3 {[%emt 0:00:09]} 75. Kxf3 {[%emt 0:00:05]} Kf5 {[%emt 0:00:08]} 76. Kg3 {[%emt 0:00:37]} Ra2 {[%emt 0:00:27]} 77. Kf3 {[%emt 0:00:46]} Rc2 {[%emt 0:00:06]} 78. Rd3 {[%emt 0:00:13]} Ke5 {[%emt 0:00:07]} 79. Ke3 {[%emt 0:00:04]} Rc1 {[%emt 0:03:00]} 80. Kd2 {[%emt 0:00:07]} Rh1 {[%emt 0:00:17]} 81. Kc2 {[%emt 0:00:17]} Ke6 {[%emt 0:00:29]} 82. c4 {[%emt 0:00:17]} Rh7 {[%emt 0:00:36]} 83. Kc3 {[%emt 0:00:21]} Ra7 {[%emt 0:00:49]} 84. Kb4 {[%emt 0:00:22]} Ke7 {[%emt 0:00:34]} 85. Kb5 {[%emt 0:00:19]} Ra1 {[%emt 0:00:27]} 86. c5 {[%emt 0:00:43]} Rb1+ {[%emt 0:00:09]} 87. Kc6 {[%emt 0:00:08]} Rh1 {[%emt 0:00:23]} 88. Kc7 {[%emt 0:00:24]} Rc1 {[%emt 0:00:48]} 89. c6 {[%emt 0:00:08]} Ke6 {[%emt 0:00:39]} 90. Kb7 {[%emt 0:00:23]} Rb1+ {[%emt 0:00:18]} 91. Kc8 {[%emt 0:00:05]} Rc1 {[%emt 0:00:41]} 92. c7 {[%emt 0:00:05]} Ke7 {[%emt 0:00:11]} 93. Re3+ {[%emt 0:00:42]} Kf7 {[%emt 0:00:26]} 94. Re4 {[%emt 0:00:11]} Rc2 {[%emt 0:00:42]} 95. Kd7 {[%emt 0:01:00]} Rd2+ {[%emt 0:00:12]} 96. Kc6 {[%emt 0:01:05]} Rc2+ {[%emt 0:00:08]} 97. Kd6 {[%emt 0:00:04]} Rd2+ {[%emt 0:00:05]} 98. Kc5 {[%emt 0:00:12]} Rc2+ {[%emt 0:00:08]} 99. Rc4 {[%emt 0:00:04]} 1-0

[Event "Romanian Superliga Women 2024"]
[Site "Mamaia"]
[Date "2024.10.01"]
[Round "2.7"]
[White "Trifoi, Mihaela-Ioana"]
[Black "Iordache, Alexia-Andreea"]
[Result "1-0"]
[ECO "B50"]
[WhiteElo "2016"]
[BlackElo "2014"]
[Annotator "RC"]
[PlyCount "121"]
[EventDate "2024.09.26"]
[EventType "team-tourn"]
[EventCountry "ROU"]
[SourceTitle "playchess.com"]
[Source "ChessBase"]
[SourceQuality "1"]
[TimeControl "40/5400+30:1800+30"]

1. e4 {[%emt 0:07:31]} c5 {[%emt 0:00:05]} 2. Nf3 {[%emt 0:00:07]} d6 {[%emt 0:00:03]} 3. Bb5+ {[%emt 0:00:07]} Nd7 {[%emt 0:00:04]} 4. O-O {[%emt 0:00:12]} a6 {[%emt 0:00:07]} 5. Bd3 {[%emt 0:00:08]} Ngf6 {[%emt 0:00:17]} 6. Re1 {[%emt 0:00:17]} g6 {[%emt 0:00:18]} 7. c3 {[%emt 0:00:18]} Bg7 {[%emt 0:00:06]} 8. Bf1 {[%emt 0:00:07]} O-O {[%emt 0:00:27]} 9. d4 {[%emt 0:00:06]} e5 {[%emt 0:04:08]} 10. d5 {[%emt 0:02:47]} b5 {[%emt 0:04:40]} 11. a4 {[%emt 0:00:41]} Rb8 {[%emt 0:00:49]} 12. b3 {[%emt 0:16:13]} Ne8 {[%emt 0:23:21]} 13. h4 {[%emt 0:09:25]} f5 {[%emt 0:09:35]} 14. Bg5 {[%emt 0:05:19]} Ndf6 {[%emt 0:02:36]} 15. axb5 {[%emt 0:01:28]} axb5 {[%emt 0:00:03]} 16. b4 {[%emt 0:00:23]} fxe4 {[%emt 0:03:49]} 17. Rxe4 {[%emt 0:00:12]} Qc7 {[%emt 0:02:09]} 18. Re1 {[%emt 0:01:54]} c4 {[%emt 0:02:03]} 19. Ra5 {[%emt 0:01:07]} Qf7 {[%emt 0:06:20]} 20. Na3 {[%emt 0:04:59]} Nxd5 {[%emt 0:06:39]} 21. Bxc4 {[%emt 0:08:37]} bxc4 {[%emt 0:00:19]} 22. Qxd5 {[%emt 0:00:39]} Be6 {[%emt 0:01:42]} 23. Qd2 {[%emt 0:00:33]} Bg4 {[%emt 0:08:28]} 24. Nh2 {[%emt 0:01:42]} Bc8 {[%emt 0:02:35]} 25. Re4 {[%emt 0:05:35]} Be6 {[%emt 0:06:29]} 26. Nf3 {[%emt 0:09:17]} Qf5 {[%emt 0:05:26]} 27. Re1 {[%emt 0:01:23]} d5 {[%emt 0:06:11]} 28. Nxc4 {[%emt 0:11:40]} dxc4 {[%emt 0:01:14]} 29. Nxe5 {[%emt 0:00:09]} Bc8 {[%emt 0:04:01]} 30. Nc6 {[%emt 0:00:32]} Qf7 {[%emt 0:00:41]} 31. Re7 {[%emt 0:02:23]} Bxc3 {[%emt 0:01:15]} 32. Rxf7 {[%emt 0:00:34]} Bxd2 {[%emt 0:00:00]} 33. Rxf8+ {[%emt 0:00:11]} Kxf8 {[%emt 0:00:00]} 34. Nxb8 {[%emt 0:00:10]} Bxb4 {[%emt 0:00:00]} 35. Ra7 {[%emt 0:01:20]} Bc5 {[%emt 0:02:00]} 36. Nd7+ {[%emt 0:01:34]} Bxd7 {[%emt 0:00:00]} 37. Rxd7 {[%emt 0:00:06]} h5 {[%emt 0:00:00]} 38. Kf1 {[%emt 0:00:39]} c3 {[%emt 0:00:00]} 39. Ke2 {[%emt 0:00:32]} Kg8 {[%emt 0:00:59]} 40. f3 {[%emt 0:00:00]} Bf8 {[%emt 0:00:00]} 41. Kd3 {[%emt 0:01:33]} Bg7 {[%emt 0:01:16]} 42. g4 {[%emt 0:00:14]} hxg4 {[%emt 0:03:05]} 43. fxg4 {[%emt 0:00:09]} Bf6 {[%emt 0:00:05]} 44. Bxf6 {[%emt 0:02:15]} Nxf6 {[%emt 0:00:00]} 45. Rd6 {[%emt 0:01:07]} Kf7 {[%emt 0:00:15]} 46. g5 {[%emt 0:00:16]} Nh5 {[%emt 0:04:10]} 47. Kxc3 {[%emt 0:00:50]} Ng3 {[%emt 0:00:17]} 48. Rf6+ {[%emt 0:00:32]} Kg7 {[%emt 0:00:02]} 49. Kd4 {[%emt 0:01:30]} Nh5 {[%emt 0:00:52]} 50. Rf3 {[%emt 0:02:07]} Kg8 {[%emt 0:00:42]} 51. Ke5 {[%emt 0:00:08]} Kg7 {[%emt 0:00:03]} 52. Ke6 {[%emt 0:00:49]} Kg8 {[%emt 0:00:18]} 53. Rf6 {[%emt 0:01:03]} Kg7 {[%emt 0:00:04]} 54. Ke7 {[%emt 0:00:19]} Ng3 {[%emt 0:02:32]} 55. Rf7+ {[%emt 0:00:27]} Kg8 {[%emt 0:00:14]} 56. Kf6 {[%emt 0:00:11]} Nf5 {[%emt 0:00:11]} 57. Kxg6 {[%emt 0:01:05]} Nxh4+ {[%emt 0:00:07]} 58. Kf6 {[%emt 0:00:11]} Nf5 {[%emt 0:00:10]} 59. Rd7 {[%emt 0:00:50]} Ne3 {[%emt 0:00:09]} 60. Rd8+ {[%emt 0:00:19]} Kh7 {[%emt 0:00:03]} 61. g6+ {[%emt 0:00:07]} 1-0